[Event "Titled Tuesday Blitz May 03 Late 2022"]
[White "Kujawski, Adam"]
[Black "Sargsyan, Anna M."]
[WhiteFideId "1100920"]
[BlackFideId "13308130"]
[WhiteElo "2053"]
[BlackElo "2271"]
[Result "0-1"]
[Round "01"]
[TimeControl "180+1"]
[Date "2022.05.03"]
[WhiteClock "0:00:05"]
[BlackClock "0:00:06"]

1. e4 {[%clk 0:02:59]}  e5 {[%clk 0:02:59]} 2. Nf3 {[%clk 0:02:59]}  Nc6 {[%clk 0:02:59]} 3. Bb5 {[%clk 0:02:57]}  a6 {[%clk 0:02:58]} 4. Ba4 {[%clk 0:02:58]}  Nf6 {[%clk 0:02:58]} 5. O-O {[%clk 0:02:58]}  Nxe4 {[%clk 0:02:58]} 6. d4 {[%clk 0:02:57]}  b5 {[%clk 0:02:58]} 7. Bb3 {[%clk 0:02:57]}  d5 {[%clk 0:02:58]} 8. dxe5 {[%clk 0:02:57]}  Be6 {[%clk 0:02:58]} 9. Nbd2 {[%clk 0:02:57]}  Be7 {[%clk 0:02:57]} 10. c3 {[%clk 0:02:16]}  O-O {[%clk 0:02:56]} 11. Bc2 {[%clk 0:02:12]}  f5 {[%clk 0:02:56]} 12. Nd4 {[%clk 0:02:04]}  Nxd4 {[%clk 0:02:36]} 13. cxd4 {[%clk 0:02:05]}  c5 {[%clk 0:02:37]} 14. dxc5 {[%clk 0:01:35]}  Bxc5 {[%clk 0:02:32]} 15. Nb3 {[%clk 0:01:35]}  Bb6 {[%clk 0:02:01]} 16. Nd4 {[%clk 0:01:34]}  Qe7 {[%clk 0:01:49]} 17. Bb3 {[%clk 0:00:58]}  Rad8 {[%clk 0:01:48]} 18. Be3 {[%clk 0:00:54]}  Bxd4 {[%clk 0:01:42]} 19. Bxd4 {[%clk 0:00:51]}  f4 {[%clk 0:01:42]} 20. f3 {[%clk 0:00:47]}  Nc5 {[%clk 0:01:42]} 21. Rc1 {[%clk 0:00:40]}  Nxb3 {[%clk 0:01:39]} 22. Qxb3 {[%clk 0:00:41]}  Qb7 {[%clk 0:01:28]} 23. Qb4 {[%clk 0:00:37]}  h6 {[%clk 0:01:24]} 24. Rc5 {[%clk 0:00:35]}  Rc8 {[%clk 0:01:07]} 25. Rfc1 {[%clk 0:00:35]}  Rxc5 {[%clk 0:01:07]} 26. Rxc5 {[%clk 0:00:34]}  Rc8 {[%clk 0:01:08]} 27. Qc3 {[%clk 0:00:34]}  Rxc5 {[%clk 0:01:04]} 28. Qxc5 {[%clk 0:00:35]}  Kh7 {[%clk 0:01:04]} 29. Qd6 {[%clk 0:00:34]}  Qc8 {[%clk 0:00:58]} 30. h3 {[%clk 0:00:28]}  a5 {[%clk 0:00:35]} 31. Kh2 {[%clk 0:00:27]}  a4 {[%clk 0:00:34]} 32. Bc5 {[%clk 0:00:23]}  Qe8 {[%clk 0:00:29]} 33. a3 {[%clk 0:00:20]}  Qg6 {[%clk 0:00:29]} 34. Bf2 {[%clk 0:00:20]}  Qf5 {[%clk 0:00:24]} 35. Qb4 {[%clk 0:00:16]}  Qxe5 {[%clk 0:00:21]} 36. Bd4 {[%clk 0:00:13]}  Qg5 {[%clk 0:00:20]} 37. Qxb5 {[%clk 0:00:11]}  Qg3+ {[%clk 0:00:18]} 38. Kh1 {[%clk 0:00:11]}  Bxh3 {[%clk 0:00:16]} 39. gxh3 {[%clk 0:00:10]}  Qxh3+ {[%clk 0:00:17]} 40. Kg1 {[%clk 0:00:10]}  Qg3+ {[%clk 0:00:17]} 41. Kf1 {[%clk 0:00:09]}  Qxf3+ {[%clk 0:00:18]} 42. Bf2 {[%clk 0:00:09]}  Qh1+ {[%clk 0:00:16]} 43. Bg1 {[%clk 0:00:07]}  Qh3+ {[%clk 0:00:15]} 44. Ke1 {[%clk 0:00:06]}  Qh4+ {[%clk 0:00:12]} 45. Bf2 {[%clk 0:00:05]}  Qh1+ {[%clk 0:00:12]} 46. Kd2 {[%clk 0:00:05]}  Qg2 {[%clk 0:00:12]} 47. Qe2 {[%clk 0:00:05]}  g5 {[%clk 0:00:07]} 48. Kc2 {[%clk 0:00:05]}  Qe4+ {[%clk 0:00:06]} 49. Kc1 {[%clk 0:00:05]}  Qxe2 {[%clk 0:00:06]} 0-1


[Site "https://www.chess.com"]

[Event "Titled Tuesday Blitz May 03 Late 2022"]
[White "Lashkin, Jegor"]
[Black "Koutlas, Nikolaos"]
[WhiteFideId "13907808"]
[BlackFideId "25827138"]
[WhiteElo "2368"]
[BlackElo "1645"]
[Result "1-0"]
[Round "01"]
[TimeControl "180+1"]
[Date "2022.05.03"]
[WhiteClock "0:02:40"]
[BlackClock "0:02:01"]

1. Nf3 {[%clk 0:02:58]}  Nf6 {[%clk 0:02:56]} 2. e3 {[%clk 0:02:57]}  g6 {[%clk 0:02:54]} 3. b3 {[%clk 0:02:58]}  Bg7 {[%clk 0:02:55]} 4. Bb2 {[%clk 0:02:59]}  O-O {[%clk 0:02:56]} 5. d4 {[%clk 0:02:59]}  b6 {[%clk 0:02:56]} 6. Be2 {[%clk 0:02:59]}  Bb7 {[%clk 0:02:56]} 7. O-O {[%clk 0:02:59]}  c5 {[%clk 0:02:57]} 8. c4 {[%clk 0:02:58]}  cxd4 {[%clk 0:02:57]} 9. Bxd4 {[%clk 0:02:54]}  d5 {[%clk 0:02:56]} 10. cxd5 {[%clk 0:02:53]}  Nxd5 {[%clk 0:02:54]} 11. Bxg7 {[%clk 0:02:53]}  Kxg7 {[%clk 0:02:55]} 12. Qd4+ {[%clk 0:02:53]}  f6 {[%clk 0:02:54]} 13. Rd1 {[%clk 0:02:51]}  Nc6 {[%clk 0:02:53]} 14. Qb2 {[%clk 0:02:51]}  Ncb4 {[%clk 0:02:10]} 15. e4 {[%clk 0:02:49]}  Nf4 {[%clk 0:02:11]} 16. Rxd8 {[%clk 0:02:49]}  Rfxd8 {[%clk 0:02:11]} 17. Nc3 {[%clk 0:02:47]}  Rac8 {[%clk 0:02:10]} 18. Bc4 {[%clk 0:02:43]}  b5 {[%clk 0:02:04]} 19. Nxb5 {[%clk 0:02:42]}  Nbd3 {[%clk 0:02:02]} 20. Qa3 {[%clk 0:02:40]}  a6 {[%clk 0:02:01]} 21. Qxe7+ {[%clk 0:02:40]} 1-0


[Site "https://www.chess.com"]

[Event "Titled Tuesday Blitz May 03 Late 2022"]
[White "Lehtosaari, Mauri"]
[Black "Tang, Andrew"]
[WhiteFideId "501999"]
[BlackFideId "2059630"]
[WhiteElo "2508"]
[BlackElo "2584"]
[Result "0-1"]
[Round "01"]
[TimeControl "180+1"]
[Date "2022.05.03"]
[WhiteClock "0:00:19"]
[BlackClock "0:00:10"]

1. d4 {[%clk 0:03:00]}  d5 {[%clk 0:02:34]} 2. Nf3 {[%clk 0:03:00]}  Nf6 {[%clk 0:02:34]} 3. Bg5 {[%clk 0:03:00]}  e6 {[%clk 0:02:31]} 4. Nbd2 {[%clk 0:02:59]}  c5 {[%clk 0:02:31]} 5. e3 {[%clk 0:02:56]}  Nc6 {[%clk 0:02:31]} 6. c3 {[%clk 0:02:53]}  Qb6 {[%clk 0:02:30]} 7. Rb1 {[%clk 0:02:51]}  h6 {[%clk 0:02:30]} 8. Bh4 {[%clk 0:02:51]}  Bd7 {[%clk 0:02:20]} 9. Bd3 {[%clk 0:02:41]}  g5 {[%clk 0:01:17]} 10. Bg3 {[%clk 0:02:41]}  Nh5 {[%clk 0:01:18]} 11. O-O {[%clk 0:02:29]}  Nxg3 {[%clk 0:01:13]} 12. fxg3 {[%clk 0:02:19]}  Bg7 {[%clk 0:01:11]} 13. Kh1 {[%clk 0:02:17]}  g4 {[%clk 0:01:01]} 14. Ng1 {[%clk 0:02:03]}  f5 {[%clk 0:00:54]} 15. Ne2 {[%clk 0:01:56]}  O-O {[%clk 0:00:49]} 16. Nf4 {[%clk 0:01:50]}  Rac8 {[%clk 0:00:45]} 17. a3 {[%clk 0:01:45]}  Nd8 {[%clk 0:00:40]} 18. Qe2 {[%clk 0:01:19]}  c4 {[%clk 0:00:39]} 19. Bc2 {[%clk 0:01:19]}  Qc7 {[%clk 0:00:40]} 20. h3 {[%clk 0:01:02]}  gxh3 {[%clk 0:00:34]} 21. gxh3 {[%clk 0:01:02]}  Nf7 {[%clk 0:00:33]} 22. Nf3 {[%clk 0:00:58]}  Qd6 {[%clk 0:00:31]} 23. Rg1 {[%clk 0:00:54]}  Ng5 {[%clk 0:00:29]} 24. Kh2 {[%clk 0:00:23]}  Rf7 {[%clk 0:00:22]} 25. Ng6 {[%clk 0:00:20]}  Bf6 {[%clk 0:00:21]} 26. h4 {[%clk 0:00:18]}  Nxf3+ {[%clk 0:00:20]} 27. Qxf3 {[%clk 0:00:19]}  Rg7 {[%clk 0:00:20]} 28. Nf4 {[%clk 0:00:18]}  Be8 {[%clk 0:00:20]} 29. Rg2 {[%clk 0:00:17]}  Bf7 {[%clk 0:00:20]} 30. Rbg1 {[%clk 0:00:17]}  Kh8 {[%clk 0:00:21]} 31. Nh5 {[%clk 0:00:17]}  Rg6 {[%clk 0:00:09]} 32. Nf4 {[%clk 0:00:17]}  Rg4 {[%clk 0:00:09]} 33. Bd1 {[%clk 0:00:17]}  Rcg8 {[%clk 0:00:07]} 34. Qf2 {[%clk 0:00:17]}  R4g7 {[%clk 0:00:05]} 35. Kh1 {[%clk 0:00:15]}  Bd8 {[%clk 0:00:06]} 36. Bh5 {[%clk 0:00:15]}  Qe7 {[%clk 0:00:06]} 37. Bxf7 {[%clk 0:00:14]}  Qxf7 {[%clk 0:00:07]} 38. Rh2 {[%clk 0:00:15]}  Bc7 {[%clk 0:00:07]} 39. Qf3 {[%clk 0:00:15]}  Rg4 {[%clk 0:00:07]} 40. Rgg2 {[%clk 0:00:15]}  Kh7 {[%clk 0:00:07]} 41. Ne2 {[%clk 0:00:15]}  Qg6 {[%clk 0:00:07]} 42. Nf4 {[%clk 0:00:16]}  Bxf4 {[%clk 0:00:07]} 43. exf4 {[%clk 0:00:17]}  Qh5 {[%clk 0:00:07]} 44. Qf2 {[%clk 0:00:17]}  R8g6 {[%clk 0:00:06]} 45. Qe2 {[%clk 0:00:17]}  b5 {[%clk 0:00:06]} 46. Qe5 {[%clk 0:00:16]}  a5 {[%clk 0:00:06]} 47. Qe3 {[%clk 0:00:16]}  Kg8 {[%clk 0:00:05]} 48. Rh3 {[%clk 0:00:15]}  Kf7 {[%clk 0:00:06]} 49. Kh2 {[%clk 0:00:16]}  Rg8 {[%clk 0:00:06]} 50. Re2 {[%clk 0:00:16]}  Re8 {[%clk 0:00:06]} 51. Qe5 {[%clk 0:00:17]}  Re7 {[%clk 0:00:07]} 52. Qe3 {[%clk 0:00:17]}  b4 {[%clk 0:00:07]} 53. axb4 {[%clk 0:00:17]}  axb4 {[%clk 0:00:08]} 54. cxb4 {[%clk 0:00:18]}  Rg8 {[%clk 0:00:09]} 55. Qf2 {[%clk 0:00:18]}  Rb8 {[%clk 0:00:09]} 56. Qe3 {[%clk 0:00:18]}  Rxb4 {[%clk 0:00:10]} 57. Qa3 {[%clk 0:00:19]}  Rb3 {[%clk 0:00:10]} 58. Qd6 {[%clk 0:00:19]}  Qxe2+ {[%clk 0:00:10]} 0-1


[Site "https://www.chess.com"]

[Event "Titled Tuesday Blitz May 03 Late 2022"]
[White "Manukyan, Sargis A."]
[Black "Rasulov, Vugar"]
[WhiteFideId "13303970"]
[BlackFideId "13402390"]
[WhiteElo "2187"]
[BlackElo "2560"]
[Result "0-1"]
[Round "01"]
[TimeControl "180+1"]
[Date "2022.05.03"]
[WhiteClock "0:01:00"]
[BlackClock "0:01:47"]

1. d4 {[%clk 0:03:00]}  d5 {[%clk 0:03:00]} 2. e3 {[%clk 0:03:00]}  Nf6 {[%clk 0:02:59]} 3. Nf3 {[%clk 0:03:01]}  Bg4 {[%clk 0:02:59]} 4. Be2 {[%clk 0:03:02]}  e6 {[%clk 0:02:59]} 5. O-O {[%clk 0:03:03]}  Nbd7 {[%clk 0:02:59]} 6. Ne5 {[%clk 0:03:04]}  Bxe2 {[%clk 0:02:58]} 7. Qxe2 {[%clk 0:03:04]}  Bd6 {[%clk 0:02:58]} 8. f4 {[%clk 0:03:04]}  O-O {[%clk 0:02:58]} 9. c3 {[%clk 0:03:04]}  Ne4 {[%clk 0:02:55]} 10. Bd2 {[%clk 0:03:04]}  f6 {[%clk 0:02:54]} 11. Nxd7 {[%clk 0:03:04]}  Qxd7 {[%clk 0:02:55]} 12. Be1 {[%clk 0:03:04]}  e5 {[%clk 0:02:49]} 13. Nd2 {[%clk 0:03:05]}  exf4 {[%clk 0:02:47]} 14. Nxe4 {[%clk 0:03:03]}  dxe4 {[%clk 0:02:48]} 15. exf4 {[%clk 0:03:02]}  f5 {[%clk 0:02:48]} 16. g3 {[%clk 0:03:00]}  Rae8 {[%clk 0:02:47]} 17. Bf2 {[%clk 0:03:01]}  Kh8 {[%clk 0:02:34]} 18. Be3 {[%clk 0:03:01]}  a6 {[%clk 0:02:34]} 19. a4 {[%clk 0:03:01]}  h6 {[%clk 0:02:33]} 20. a5 {[%clk 0:02:59]}  Kh7 {[%clk 0:02:33]} 21. h4 {[%clk 0:02:58]}  Rf6 {[%clk 0:02:31]} 22. Kf2 {[%clk 0:02:59]}  Rg6 {[%clk 0:02:31]} 23. Rg1 {[%clk 0:02:58]}  Rg4 {[%clk 0:02:31]} 24. b4 {[%clk 0:02:56]}  Re6 {[%clk 0:02:31]} 25. Rab1 {[%clk 0:02:54]}  Reg6 {[%clk 0:02:19]} 26. b5 {[%clk 0:02:53]}  Be7 {[%clk 0:02:15]} 27. bxa6 {[%clk 0:02:47]}  bxa6 {[%clk 0:02:16]} 28. h5 {[%clk 0:02:45]}  Rc6 {[%clk 0:02:14]} 29. Rgc1 {[%clk 0:01:49]}  g6 {[%clk 0:02:07]} 30. c4 {[%clk 0:01:41]}  gxh5 {[%clk 0:02:06]} 31. d5 {[%clk 0:01:41]}  Rcg6 {[%clk 0:02:07]} 32. Rg1 {[%clk 0:01:41]}  h4 {[%clk 0:02:06]} 33. c5 {[%clk 0:01:27]}  Qe8 {[%clk 0:01:56]} 34. Rb7 {[%clk 0:01:22]}  hxg3+ {[%clk 0:01:55]} 35. Ke1 {[%clk 0:01:19]}  Qa4 {[%clk 0:01:53]} 36. Rxc7 {[%clk 0:01:11]}  Qxa5+ {[%clk 0:01:53]} 37. Qd2 {[%clk 0:01:02]}  Qxc7 {[%clk 0:01:53]} 38. d6 {[%clk 0:01:01]}  Bxd6 {[%clk 0:01:52]} 39. cxd6 {[%clk 0:01:02]}  Qxd6 {[%clk 0:01:52]} 40. Qa5 {[%clk 0:01:02]}  Qd7 {[%clk 0:01:48]} 41. Ke2 {[%clk 0:01:00]}  Qd3+ {[%clk 0:01:47]} 0-1


[Site "https://www.chess.com"]

[Event "Titled Tuesday Blitz May 03 Late 2022"]
[White "Martinez Alcantara, Jose Eduardo"]
[Black "Migot, Tangi"]
[WhiteFideId "3805662"]
[BlackFideId "662445"]
[WhiteElo "2690"]
[BlackElo "2502"]
[Result "1-0"]
[Round "01"]
[TimeControl "180+1"]
[Date "2022.05.03"]
[WhiteClock "0:02:50"]
[BlackClock "0:02:38"]

1. e4 {[%clk 0:03:00]}  c5 {[%clk 0:02:59]} 2. Nf3 {[%clk 0:03:00]}  d6 {[%clk 0:03:00]} 3. c3 {[%clk 0:02:58]}  Nf6 {[%clk 0:02:59]} 4. h3 {[%clk 0:02:59]}  Bd7 {[%clk 0:02:58]} 5. Bd3 {[%clk 0:02:59]}  Bc6 {[%clk 0:02:59]} 6. Qe2 {[%clk 0:02:59]}  e6 {[%clk 0:02:59]} 7. O-O {[%clk 0:02:59]}  d5 {[%clk 0:02:59]} 8. e5 {[%clk 0:02:59]}  Nfd7 {[%clk 0:02:59]} 9. Bc2 {[%clk 0:02:59]}  c4 {[%clk 0:02:56]} 10. d4 {[%clk 0:02:57]}  cxd3 {[%clk 0:02:56]} 11. Bxd3 {[%clk 0:02:57]}  Nc5 {[%clk 0:02:54]} 12. Nd4 {[%clk 0:02:57]}  Nxd3 {[%clk 0:02:53]} 13. Qxd3 {[%clk 0:02:58]}  Nd7 {[%clk 0:02:51]} 14. Qg3 {[%clk 0:02:56]}  h5 {[%clk 0:02:48]} 15. Nxe6 {[%clk 0:02:49]}  fxe6 {[%clk 0:02:37]} 16. Qg6+ {[%clk 0:02:49]}  Ke7 {[%clk 0:02:38]} 17. Bg5+ {[%clk 0:02:49]}  Nf6 {[%clk 0:02:38]} 18. exf6+ {[%clk 0:02:50]}  gxf6 {[%clk 0:02:38]} 19. Bxf6+ {[%clk 0:02:50]} 1-0


[Site "https://www.chess.com"]

[Event "Titled Tuesday Blitz May 03 Late 2022"]
[White "Mekhane, Adam"]
[Black "Biletskiy, Danylo"]
[WhiteFideId "36050601"]
[BlackFideId "14155419"]
[WhiteElo "2002"]
[BlackElo "2087"]
[Result "0-1"]
[Round "01"]
[TimeControl "180+1"]
[Date "2022.05.03"]
[WhiteClock "0:00:21"]
[BlackClock "0:00:55"]

1. e4 {[%clk 0:03:00]}  c5 {[%clk 0:02:57]} 2. Nf3 {[%clk 0:02:58]}  Nc6 {[%clk 0:02:57]} 3. d4 {[%clk 0:02:55]}  cxd4 {[%clk 0:02:57]} 4. Nxd4 {[%clk 0:02:55]}  e5 {[%clk 0:02:58]} 5. Nb5 {[%clk 0:02:54]}  d6 {[%clk 0:02:57]} 6. c4 {[%clk 0:02:51]}  Be6 {[%clk 0:02:51]} 7. Be2 {[%clk 0:02:36]}  Be7 {[%clk 0:02:49]} 8. O-O {[%clk 0:02:35]}  a6 {[%clk 0:02:49]} 9. N5c3 {[%clk 0:02:35]}  Nf6 {[%clk 0:02:50]} 10. Be3 {[%clk 0:02:28]}  O-O {[%clk 0:02:50]} 11. Na3 {[%clk 0:02:19]}  Rc8 {[%clk 0:02:47]} 12. f3 {[%clk 0:02:17]}  Nd4 {[%clk 0:02:13]} 13. Bd3 {[%clk 0:02:08]}  Nd7 {[%clk 0:02:04]} 14. Qd2 {[%clk 0:01:55]}  Nc5 {[%clk 0:02:00]} 15. Nd5 {[%clk 0:01:49]}  Nxd3 {[%clk 0:01:32]} 16. Qxd3 {[%clk 0:01:46]}  Bg5 {[%clk 0:01:32]} 17. Bxd4 {[%clk 0:01:40]}  exd4 {[%clk 0:01:32]} 18. f4 {[%clk 0:01:40]}  Bxd5 {[%clk 0:01:28]} 19. cxd5 {[%clk 0:01:36]}  Bf6 {[%clk 0:01:28]} 20. Rac1 {[%clk 0:01:35]}  Qb6 {[%clk 0:01:27]} 21. Nc4 {[%clk 0:01:32]}  Qb5 {[%clk 0:01:27]} 22. e5 {[%clk 0:01:28]}  dxe5 {[%clk 0:01:16]} 23. fxe5 {[%clk 0:01:28]}  Bg5 {[%clk 0:01:17]} 24. Qxd4 {[%clk 0:01:23]}  Bxc1 {[%clk 0:01:15]} 25. Rxc1 {[%clk 0:01:21]}  Rfd8 {[%clk 0:01:14]} 26. d6 {[%clk 0:01:16]}  Qc5 {[%clk 0:01:11]} 27. Qxc5 {[%clk 0:01:00]}  Rxc5 {[%clk 0:01:12]} 28. b4 {[%clk 0:00:51]}  Rc6 {[%clk 0:01:00]} 29. Rc2 {[%clk 0:00:36]}  b5 {[%clk 0:01:00]} 30. Ne3 {[%clk 0:00:36]}  Rxc2 {[%clk 0:01:01]} 31. Nxc2 {[%clk 0:00:36]}  f6 {[%clk 0:01:01]} 32. e6 {[%clk 0:00:25]}  Rxd6 {[%clk 0:01:01]} 33. e7 {[%clk 0:00:23]}  Kf7 {[%clk 0:01:00]} 34. Kf1 {[%clk 0:00:22]}  Kxe7 {[%clk 0:00:59]} 35. Ke2 {[%clk 0:00:22]}  g6 {[%clk 0:00:59]} 36. Ne3 {[%clk 0:00:22]}  Re6 {[%clk 0:00:59]} 37. Kf3 {[%clk 0:00:23]}  Kd6 {[%clk 0:00:56]} 38. h4 {[%clk 0:00:22]}  f5 {[%clk 0:00:55]} 39. Kf4 {[%clk 0:00:22]}  Re4+ {[%clk 0:00:55]} 40. Kf3 {[%clk 0:00:21]}  Rxb4 {[%clk 0:00:55]} 0-1


[Site "https://www.chess.com"]

[Event "Titled Tuesday Blitz May 03 Late 2022"]
[White "Melikyan, Gnel"]
[Black "Gutierrez Olivares, Daniel"]
[WhiteFideId "54109990"]
[BlackFideId "2264005"]
[WhiteElo "1772"]
[BlackElo "2317"]
[Result "1-0"]
[Round "01"]
[TimeControl "180+1"]
[Date "2022.05.03"]
[WhiteClock "0:00:41"]
[BlackClock "0:00:23"]

1. e4 {[%clk 0:02:51]}  e6 {[%clk 0:02:58]} 2. d4 {[%clk 0:02:47]}  d5 {[%clk 0:02:58]} 3. exd5 {[%clk 0:02:46]}  exd5 {[%clk 0:02:58]} 4. Bd3 {[%clk 0:02:47]}  Nc6 {[%clk 0:02:58]} 5. c3 {[%clk 0:02:46]}  Bd6 {[%clk 0:02:56]} 6. Nf3 {[%clk 0:02:46]}  Nge7 {[%clk 0:02:56]} 7. O-O {[%clk 0:02:46]}  Bg4 {[%clk 0:02:54]} 8. h3 {[%clk 0:02:46]}  Bh5 {[%clk 0:02:54]} 9. Bg5 {[%clk 0:02:44]}  f6 {[%clk 0:02:54]} 10. Bh4 {[%clk 0:02:44]}  Qd7 {[%clk 0:02:53]} 11. Nbd2 {[%clk 0:02:43]}  g5 {[%clk 0:02:27]} 12. Bg3 {[%clk 0:02:42]}  Bg6 {[%clk 0:02:27]} 13. Qc2 {[%clk 0:02:40]}  O-O-O {[%clk 0:02:20]} 14. Rfe1 {[%clk 0:02:30]}  Nf5 {[%clk 0:02:13]} 15. Bxd6 {[%clk 0:02:27]}  cxd6 {[%clk 0:02:12]} 16. Nf1 {[%clk 0:02:22]}  Kb8 {[%clk 0:02:05]} 17. Ne3 {[%clk 0:02:19]}  Nce7 {[%clk 0:01:56]} 18. Re2 {[%clk 0:01:47]}  h5 {[%clk 0:01:52]} 19. Rae1 {[%clk 0:01:45]}  Nxe3 {[%clk 0:01:45]} 20. Rxe3 {[%clk 0:01:40]}  Bxd3 {[%clk 0:01:44]} 21. Qxd3 {[%clk 0:01:38]}  Nc6 {[%clk 0:01:17]} 22. Re6 {[%clk 0:01:29]}  g4 {[%clk 0:01:17]} 23. Nh4 {[%clk 0:01:28]}  gxh3 {[%clk 0:01:17]} 24. Qxh3 {[%clk 0:01:27]}  Rhg8 {[%clk 0:01:12]} 25. Nf5 {[%clk 0:01:18]}  Qc7 {[%clk 0:01:02]} 26. Qh2 {[%clk 0:01:14]}  Rg5 {[%clk 0:00:48]} 27. Nxd6 {[%clk 0:01:05]}  a6 {[%clk 0:00:41]} 28. Rxf6 {[%clk 0:00:50]}  Rdg8 {[%clk 0:00:36]} 29. Re8+ {[%clk 0:00:45]}  Ka7 {[%clk 0:00:24]} 30. Rxg8 {[%clk 0:00:42]}  Rxg8 {[%clk 0:00:23]} 31. Nb5+ {[%clk 0:00:41]} 1-0


[Site "https://www.chess.com"]

[Event "Titled Tuesday Blitz May 03 Late 2022"]
[White "Mikhailov, Viacheslav"]
[Black "Meduri, Aakaash"]
[WhiteFideId "4187369"]
[BlackFideId "2032252"]
[WhiteElo "2381"]
[BlackElo "2096"]
[Result "1-0"]
[Round "01"]
[TimeControl "180+1"]
[Date "2022.05.03"]
[WhiteClock "0:01:51"]
[BlackClock "0:00:09"]

1. Nf3 {[%clk 0:03:00]}  d5 {[%clk 0:02:48]} 2. g3 {[%clk 0:03:00]}  c5 {[%clk 0:02:48]} 3. Bg2 {[%clk 0:03:00]}  Nc6 {[%clk 0:02:48]} 4. d4 {[%clk 0:03:00]}  g6 {[%clk 0:02:49]} 5. O-O {[%clk 0:03:00]}  Bg7 {[%clk 0:02:49]} 6. dxc5 {[%clk 0:03:00]}  Nf6 {[%clk 0:02:50]} 7. Nc3 {[%clk 0:03:00]}  O-O {[%clk 0:02:50]} 8. Bf4 {[%clk 0:03:00]}  Re8 {[%clk 0:02:49]} 9. Ne5 {[%clk 0:03:00]}  Be6 {[%clk 0:02:47]} 10. Nxc6 {[%clk 0:02:59]}  bxc6 {[%clk 0:02:48]} 11. Be5 {[%clk 0:03:00]}  Qa5 {[%clk 0:02:47]} 12. Qd4 {[%clk 0:02:56]}  a6 {[%clk 0:02:32]} 13. b4 {[%clk 0:02:55]}  Qd8 {[%clk 0:02:25]} 14. a4 {[%clk 0:02:52]}  Nh5 {[%clk 0:02:16]} 15. Bxg7 {[%clk 0:02:48]}  Nxg7 {[%clk 0:02:16]} 16. e4 {[%clk 0:02:44]}  dxe4 {[%clk 0:01:43]} 17. Qxd8 {[%clk 0:02:45]}  Rexd8 {[%clk 0:01:40]} 18. Bxe4 {[%clk 0:02:45]}  Bd5 {[%clk 0:01:01]} 19. Bxd5 {[%clk 0:02:43]}  cxd5 {[%clk 0:01:02]} 20. b5 {[%clk 0:02:42]}  d4 {[%clk 0:00:53]} 21. Ne4 {[%clk 0:02:41]}  f5 {[%clk 0:00:53]} 22. Nd2 {[%clk 0:02:38]}  Rd5 {[%clk 0:00:40]} 23. Nb3 {[%clk 0:02:33]}  e5 {[%clk 0:00:40]} 24. c6 {[%clk 0:02:25]}  axb5 {[%clk 0:00:30]} 25. axb5 {[%clk 0:02:26]}  Rc8 {[%clk 0:00:30]} 26. b6 {[%clk 0:02:18]}  Rb5 {[%clk 0:00:24]} 27. b7 {[%clk 0:02:13]}  Rxc6 {[%clk 0:00:19]} 28. Ra8+ {[%clk 0:02:13]}  Kf7 {[%clk 0:00:19]} 29. b8=Q {[%clk 0:02:13]}  Rxb8 {[%clk 0:00:20]} 30. Rxb8 {[%clk 0:02:14]}  Rc7 {[%clk 0:00:19]} 31. Re1 {[%clk 0:02:11]}  Ke6 {[%clk 0:00:16]} 32. Nxd4+ {[%clk 0:02:10]}  Kd5 {[%clk 0:00:16]} 33. Rd8+ {[%clk 0:02:05]}  Kc4 {[%clk 0:00:16]} 34. Rxe5 {[%clk 0:02:04]}  Nh5 {[%clk 0:00:16]} 35. Nb5 {[%clk 0:01:59]}  Rc5 {[%clk 0:00:10]} 36. Na3+ {[%clk 0:01:51]}  Kb4 {[%clk 0:00:09]} 37. Rb8+ {[%clk 0:01:51]} 1-0


[Site "https://www.chess.com"]

[Event "Titled Tuesday Blitz May 03 Late 2022"]
[White "Mikhalsky, Vladimir"]
[Black "Erdogdu, Mert"]
[WhiteFideId "14144352"]
[BlackFideId "6301495"]
[WhiteElo "2301"]
[BlackElo "2485"]
[Result "1-0"]
[Round "01"]
[TimeControl "180+1"]
[Date "2022.05.03"]
[WhiteClock "0:00:47"]
[BlackClock "0:00:42"]

1. d4 {[%clk 0:02:53]}  d5 {[%clk 0:02:51]} 2. c4 {[%clk 0:02:53]}  e6 {[%clk 0:02:51]} 3. g3 {[%clk 0:02:52]}  c5 {[%clk 0:02:52]} 4. cxd5 {[%clk 0:02:51]}  exd5 {[%clk 0:02:53]} 5. Nf3 {[%clk 0:02:50]}  Nf6 {[%clk 0:02:53]} 6. Bg2 {[%clk 0:02:50]}  Nc6 {[%clk 0:02:53]} 7. O-O {[%clk 0:02:51]}  Be7 {[%clk 0:02:53]} 8. Nc3 {[%clk 0:02:50]}  O-O {[%clk 0:02:53]} 9. h3 {[%clk 0:02:50]}  c4 {[%clk 0:02:50]} 10. b3 {[%clk 0:02:49]}  cxb3 {[%clk 0:02:47]} 11. Qxb3 {[%clk 0:02:47]}  h6 {[%clk 0:02:47]} 12. Rd1 {[%clk 0:02:39]}  Na5 {[%clk 0:02:44]} 13. Qc2 {[%clk 0:02:36]}  Be6 {[%clk 0:02:44]} 14. Ne5 {[%clk 0:02:27]}  Rc8 {[%clk 0:02:43]} 15. Qd3 {[%clk 0:02:25]}  a6 {[%clk 0:02:29]} 16. Rb1 {[%clk 0:02:08]}  b5 {[%clk 0:02:29]} 17. a4 {[%clk 0:02:04]}  b4 {[%clk 0:02:21]} 18. Na2 {[%clk 0:02:03]}  Rb8 {[%clk 0:02:04]} 19. Bd2 {[%clk 0:01:53]}  b3 {[%clk 0:01:33]} 20. Bxa5 {[%clk 0:01:51]}  Qxa5 {[%clk 0:01:34]} 21. Nc6 {[%clk 0:01:49]}  Qxa4 {[%clk 0:01:26]} 22. Nxe7+ {[%clk 0:01:46]}  Kh8 {[%clk 0:01:26]} 23. Nc3 {[%clk 0:01:45]}  Qd7 {[%clk 0:01:26]} 24. Nexd5 {[%clk 0:01:33]}  Nxd5 {[%clk 0:01:26]} 25. Nxd5 {[%clk 0:01:33]}  Bxd5 {[%clk 0:01:26]} 26. e4 {[%clk 0:01:27]}  Be6 {[%clk 0:01:22]} 27. d5 {[%clk 0:01:27]}  Bxh3 {[%clk 0:01:22]} 28. Rxb3 {[%clk 0:01:27]}  Bxg2 {[%clk 0:01:16]} 29. Kxg2 {[%clk 0:01:26]}  Rb5 {[%clk 0:01:16]} 30. Rdb1 {[%clk 0:01:24]}  Rfb8 {[%clk 0:01:16]} 31. Rxb5 {[%clk 0:01:24]}  axb5 {[%clk 0:01:15]} 32. Qd4 {[%clk 0:01:22]}  Kg8 {[%clk 0:01:14]} 33. e5 {[%clk 0:01:16]}  Qb7 {[%clk 0:01:13]} 34. Kg1 {[%clk 0:01:04]}  b4 {[%clk 0:01:14]} 35. Rb3 {[%clk 0:01:03]}  Qb5 {[%clk 0:01:10]} 36. d6 {[%clk 0:01:02]}  Rb7 {[%clk 0:01:10]} 37. Qe4 {[%clk 0:00:56]}  Rb8 {[%clk 0:00:46]} 38. e6 {[%clk 0:00:50]}  fxe6 {[%clk 0:00:46]} 39. Qxe6+ {[%clk 0:00:50]}  Kh8 {[%clk 0:00:46]} 40. d7 {[%clk 0:00:49]}  Qb6 {[%clk 0:00:42]} 41. Qxb6 {[%clk 0:00:47]} 1-0


[Site "https://www.chess.com"]